Workbook

Sheet Funkce
A1: Funkce | B1: sin(x)/x
A2: Min x | B2: -20
A3: Max x | B3: 20
A4: Počet bodů | B4: 100
A5: Krok | B5: =($B$3-$B$2)/$B$4 -> 0.4

Sheet Data
A1: x | B1: f(x)
A2: =Funkce!$B$2 -> -20 | B2: =fce -> 0.04564726254
A3: =A2+Funkce!$B$5 -> -19.6 | B3: =fce -> 0.03479406225
A4: =A3+Funkce!$B$5 -> -19.2 | B4: =fce -> 0.01788098588
A5: =A4+Funkce!$B$5 -> -18.8 | B5: =fce -> -0.002634874515
A6: =A5+Funkce!$B$5 -> -18.4 | B6: =fce -> -0.02361769685
A7: =A6+Funkce!$B$5 -> -18 | B7: =fce -> -0.04172151371
A8: =A7+Funkce!$B$5 -> -17.6 | B8: =fce -> -0.0539116192
A9: =A8+Funkce!$B$5 -> -17.2 | B9: =fce -> -0.05795930617
A10: =A9+Funkce!$B$5 -> -16.8 | B10: =fce -> -0.05283137105
A11: =A10+Funkce!$B$5 -> -16.4 | B11: =fce -> -0.03890894405
A12: =A11+Funkce!$B$5 -> -16 | B12: =fce -> -0.01799395729
A13: =A12+Funkce!$B$5 -> -15.6 | B13: =fce -> 0.006907285404
A14: =A13+Funkce!$B$5 -> -15.2 | B14: =fce -> 0.03199991374
A15: =A14+Funkce!$B$5 -> -14.8 | B15: =fce -> 0.05326027482
A16: =A15+Funkce!$B$5 -> -14.4 | B16: =fce -> 0.06705956782
A17: =A16+Funkce!$B$5 -> -14 | B17: =fce -> 0.07075766826
A18: =A17+Funkce!$B$5 -> -13.6 | B18: =fce -> 0.06317366286
A19: =A18+Funkce!$B$5 -> -13.2 | B19: =fce -> 0.04485405414
A20: =A19+Funkce!$B$5 -> -12.8 | B20: =fce -> 0.01808670509
A21: =A20+Funkce!$B$5 -> -12.4 | B21: =fce -> -0.01335517544
A22: =A21+Funkce!$B$5 -> -12 | B22: =fce -> -0.04471440983
A23: =A22+Funkce!$B$5 -> -11.6 | B23: =fce -> -0.07093349957
A24: =A23+Funkce!$B$5 -> -11.2 | B24: =fce -> -0.08742658296
A25: =A24+Funkce!$B$5 -> -10.8 | B25: =fce -> -0.09082742871
A26: =A25+Funkce!$B$5 -> -10.4 | B26: =fce -> -0.07959869895
A27: =A26+Funkce!$B$5 -> -10 | B27: =fce -> -0.05440211109
A28: =A27+Funkce!$B$5 -> -9.6 | B28: =fce -> -0.01815903971
A29: =A28+Funkce!$B$5 -> -9.2 | B29: =fce -> 0.02422716458
A30: =A29+Funkce!$B$5 -> -8.8 | B30: =fce -> 0.06646786283
A31: =A30+Funkce!$B$5 -> -8.4 | B31: =fce -> 0.1017379652
A32: =A31+Funkce!$B$5 -> -8 | B32: =fce -> 0.1236697808
A33: =A32+Funkce!$B$5 -> -7.6 | B33: =fce -> 0.1273578516
A34: =A33+Funkce!$B$5 -> -7.2 | B34: =fce -> 0.1102316478
A35: =A34+Funkce!$B$5 -> -6.8 | B35: =fce -> 0.07266372811
A36: =A35+Funkce!$B$5 -> -6.4 | B36: =fce -> 0.01821081326
A37: =A36+Funkce!$B$5 -> -6 | B37: =fce -> -0.0465692497
A38: =A37+Funkce!$B$5 -> -5.6 | B38: =fce -> -0.1127261853
A39: =A38+Funkce!$B$5 -> -5.2 | B39: =fce -> -0.1698951261
A40: =A39+Funkce!$B$5 -> -4.8 | B40: =fce -> -0.2075342935
A41: =A40+Funkce!$B$5 -> -4.4 | B41: =fce -> -0.2162731986
A42: =A41+Funkce!$B$5 -> -4 | B42: =fce -> -0.1892006238
A43: =A42+Funkce!$B$5 -> -3.6 | B43: =fce -> -0.1229223454
A44: =A43+Funkce!$B$5 -> -3.2 | B44: =fce -> -0.01824191982
A45: =A44+Funkce!$B$5 -> -2.8 | B45: =fce -> 0.1196386251
A46: =A45+Funkce!$B$5 -> -2.4 | B46: =fce -> 0.2814429919
A47: =A46+Funkce!$B$5 -> -2 | B47: =fce -> 0.4546487134
A48: =A47+Funkce!$B$5 -> -1.6 | B48: =fce -> 0.6247335019
A49: =A48+Funkce!$B$5 -> -1.2 | B49: =fce -> 0.7766992383
A50: =A49+Funkce!$B$5 -> -0.8 | B50: =fce -> 0.8966951136
A51: =A50+Funkce!$B$5 -> -0.4 | B51: =fce -> 0.9735458558
A52: =A51+Funkce!$B$5 -> -4.107825191e-15 | B52: =fce -> 1
A53: =A52+Funkce!$B$5 -> 0.4 | B53: =fce -> 0.9735458558
A54: =A53+Funkce!$B$5 -> 0.8 | B54: =fce -> 0.8966951136
A55: =A54+Funkce!$B$5 -> 1.2 | B55: =fce -> 0.7766992383
A56: =A55+Funkce!$B$5 -> 1.6 | B56: =fce -> 0.6247335019
A57: =A56+Funkce!$B$5 -> 2 | B57: =fce -> 0.4546487134
A58: =A57+Funkce!$B$5 -> 2.4 | B58: =fce -> 0.2814429919
A59: =A58+Funkce!$B$5 -> 2.8 | B59: =fce -> 0.1196386251
A60: =A59+Funkce!$B$5 -> 3.2 | B60: =fce -> -0.01824191982
A61: =A60+Funkce!$B$5 -> 3.6 | B61: =fce -> -0.1229223454
A62: =A61+Funkce!$B$5 -> 4 | B62: =fce -> -0.1892006238
A63: =A62+Funkce!$B$5 -> 4.4 | B63: =fce -> -0.2162731986
A64: =A63+Funkce!$B$5 -> 4.8 | B64: =fce -> -0.2075342935
A65: =A64+Funkce!$B$5 -> 5.2 | B65: =fce -> -0.1698951261
A66: =A65+Funkce!$B$5 -> 5.6 | B66: =fce -> -0.1127261853
A67: =A66+Funkce!$B$5 -> 6 | B67: =fce -> -0.0465692497
A68: =A67+Funkce!$B$5 -> 6.4 | B68: =fce -> 0.01821081326
A69: =A68+Funkce!$B$5 -> 6.8 | B69: =fce -> 0.07266372811
A70: =A69+Funkce!$B$5 -> 7.2 | B70: =fce -> 0.1102316478
A71: =A70+Funkce!$B$5 -> 7.6 | B71: =fce -> 0.1273578516
A72: =A71+Funkce!$B$5 -> 8 | B72: =fce -> 0.1236697808
A73: =A72+Funkce!$B$5 -> 8.4 | B73: =fce -> 0.1017379652
A74: =A73+Funkce!$B$5 -> 8.8 | B74: =fce -> 0.06646786283
A75: =A74+Funkce!$B$5 -> 9.2 | B75: =fce -> 0.02422716458
A76: =A75+Funkce!$B$5 -> 9.6 | B76: =fce -> -0.01815903971
A77: =A76+Funkce!$B$5 -> 10 | B77: =fce -> -0.05440211109
A78: =A77+Funkce!$B$5 -> 10.4 | B78: =fce -> -0.07959869895
A79: =A78+Funkce!$B$5 -> 10.8 | B79: =fce -> -0.09082742871
A80: =A79+Funkce!$B$5 -> 11.2 | B80: =fce -> -0.08742658296
A81: =A80+Funkce!$B$5 -> 11.6 | B81: =fce -> -0.07093349957
A82: =A81+Funkce!$B$5 -> 12 | B82: =fce -> -0.04471440983
A83: =A82+Funkce!$B$5 -> 12.4 | B83: =fce -> -0.01335517544
A84: =A83+Funkce!$B$5 -> 12.8 | B84: =fce -> 0.01808670509
A85: =A84+Funkce!$B$5 -> 13.2 | B85: =fce -> 0.04485405414
A86: =A85+Funkce!$B$5 -> 13.6 | B86: =fce -> 0.06317366286
A87: =A86+Funkce!$B$5 -> 14 | B87: =fce -> 0.07075766826
A88: =A87+Funkce!$B$5 -> 14.4 | B88: =fce -> 0.06705956782
A89: =A88+Funkce!$B$5 -> 14.8 | B89: =fce -> 0.05326027482
A90: =A89+Funkce!$B$5 -> 15.2 | B90: =fce -> 0.03199991374
A91: =A90+Funkce!$B$5 -> 15.6 | B91: =fce -> 0.006907285404
A92: =A91+Funkce!$B$5 -> 16 | B92: =fce -> -0.01799395729
A93: =A92+Funkce!$B$5 -> 16.4 | B93: =fce -> -0.03890894405
A94: =A93+Funkce!$B$5 -> 16.8 | B94: =fce -> -0.05283137105
A95: =A94+Funkce!$B$5 -> 17.2 | B95: =fce -> -0.05795930617
A96: =A95+Funkce!$B$5 -> 17.6 | B96: =fce -> -0.0539116192
A97: =A96+Funkce!$B$5 -> 18 | B97: =fce -> -0.04172151371
A98: =A97+Funkce!$B$5 -> 18.4 | B98: =fce -> -0.02361769685
A99: =A98+Funkce!$B$5 -> 18.8 | B99: =fce -> -0.002634874515
A100: =A99+Funkce!$B$5 -> 19.2 | B100: =fce -> 0.01788098588
A101: =A100+Funkce!$B$5 -> 19.6 | B101: =fce -> 0.03479406225
A102: =A101+Funkce!$B$5 -> 20 | B102: =fce -> 0.04564726254
A103: =A102+Funkce!$B$5 -> 20.4 | B103: =fce -> 0.04900945589
A104: =A103+Funkce!$B$5 -> 20.8 | B104: =fce -> 0.04465361702
A105: =A104+Funkce!$B$5 -> 21.2 | B105: =fce -> 0.0335453407
A106: =A105+Funkce!$B$5 -> 21.6 | B106: =fce -> 0.01765048572
A107: =A106+Funkce!$B$5 -> 22 | B107: =fce -> -0.0004023322405
A108: =A107+Funkce!$B$5 -> 22.4 | B108: =fce -> -0.01774802157
A109: =A108+Funkce!$B$5 -> 22.8 | B109: =fce -> -0.03173222614
A110: =A109+Funkce!$B$5 -> 23.2 | B110: =fce -> -0.04031077221
A111: =A110+Funkce!$B$5 -> 23.6 | B111: =fce -> -0.04234220306
A112: =A111+Funkce!$B$5 -> 24 | B112: =fce -> -0.03773243175
A113: =A112+Funkce!$B$5 -> 24.4 | B113: =fce -> -0.0274143369
A114: =A113+Funkce!$B$5 -> 24.8 | B114: =fce -> -0.01317077121
A115: =A114+Funkce!$B$5 -> 25.2 | B115: =fce -> 0.002666987005
A116: =A115+Funkce!$B$5 -> 25.6 | B116: =fce -> 0.01759533571
A117: =A116+Funkce!$B$5 -> 26 | B117: =fce -> 0.02932917117
A118: =A117+Funkce!$B$5 -> 26.4 | B118: =fce -> 0.03614716267
A119: =A118+Funkce!$B$5 -> 26.8 | B119: =fce -> 0.0371399666
A120: =A119+Funkce!$B$5 -> 27.2 | B120: =fce -> 0.0323262155
A121: =A120+Funkce!$B$5 -> 27.6 | B121: =fce -> 0.02262235998
A122: =A121+Funkce!$B$5 -> 28 | B122: =fce -> 0.009675206725
A123: =A122+Funkce!$B$5 -> 28.4 | B123: =fce -> -0.004413226271
A124: =A123+Funkce!$B$5 -> 28.8 | B124: =fce -> -0.01742323962
A125: =A124+Funkce!$B$5 -> 29.2 | B125: =fce -> -0.02736374927
A126: =A125+Funkce!$B$5 -> 29.6 | B126: =fce -> -0.03277384235
A127: =A126+Funkce!$B$5 -> 30 | B127: =fce -> -0.03293438747
A128: =A127+Funkce!$B$5 -> 30.4 | B128: =fce -> -0.02795950809
A129: =A128+Funkce!$B$5 -> 30.8 | B129: =fce -> -0.01875698196
A130: =A129+Funkce!$B$5 -> 31.2 | B130: =fce -> -0.006867068599
A131: =A130+Funkce!$B$5 -> 31.6 | B131: =fce -> 0.005792269904
A132: =A131+Funkce!$B$5 -> 32 | B132: =fce -> 0.01723208379
A133: =A132+Funkce!$B$5 -> 32.4 | B133: =fce -> 0.02570245325
A134: =A133+Funkce!$B$5 -> 32.8 | B134: =fce -> 0.02995786211
A135: =A134+Funkce!$B$5 -> 33.2 | B135: =fce -> 0.02943802748
A136: =A135+Funkce!$B$5 -> 33.6 | B136: =fce -> 0.02433828138
A137: =A136+Funkce!$B$5 -> 34 | B137: =fce -> 0.01556125547
A138: =A137+Funkce!$B$5 -> 34.4 | B138: =fce -> 0.004560133577
A139: =A138+Funkce!$B$5 -> 34.8 | B139: =fce -> -0.006899758562
A140: =A139+Funkce!$B$5 -> 35.2 | B140: =fce -> -0.01702225708
A141: =A140+Funkce!$B$5 -> 35.6 | B141: =fce -> -0.02426003957
A142: =A141+Funkce!$B$5 -> 36 | B142: =fce -> -0.0275494126
A143: =A142+Funkce!$B$5 -> 36.4 | B143: =fce -> -0.02646484133
A144: =A143+Funkce!$B$5 -> 36.8 | B144: =fce -> -0.02127104656
A145: =A144+Funkce!$B$5 -> 37.2 | B145: =fce -> -0.01286682577
A146: =A145+Funkce!$B$5 -> 37.6 | B146: =fce -> -0.002631639828
A147: =A146+Funkce!$B$5 -> 38 | B147: =fce -> 0.007799173124
A148: =A147+Funkce!$B$5 -> 38.4 | B148: =fce -> 0.01679418575
A149: =A148+Funkce!$B$5 -> 38.8 | B149: =fce -> 0.0229796359
A150: =A149+Funkce!$B$5 -> 39.2 | B150: =fce -> 0.02544789334
A151: =A150+Funkce!$B$5 -> 39.6 | B151: =fce -> 0.02388920663
A152: =A151+Funkce!$B$5 -> 40 | B152: =fce -> 0.01862782901
A153: =A152+Funkce!$B$5 -> 40.4 | B153: =fce -> 0.01055883054
A154: =A153+Funkce!$B$5 -> 40.8 | B154: =fce -> 0.0009973837586
A155: =A154+Funkce!$B$5 -> 41.2 | B155: =fce -> -0.008534340042
A156: =A155+Funkce!$B$5 -> 41.6 | B156: =fce -> -0.01654833244
A157: =A156+Funkce!$B$5 -> 42 | B157: =fce -> -0.02182194162
A158: =A157+Funkce!$B$5 -> 42.4 | B158: =fce -> -0.0235833459
A159: =A158+Funkce!$B$5 -> 42.8 | B159: =fce -> -0.0216233321
A160: =A159+Funkce!$B$5 -> 43.2 | B160: =fce -> -0.01631737587
A161: =A160+Funkce!$B$5 -> 43.6 | B161: =fce -> -0.008556256218
A162: =A161+Funkce!$B$5 -> 44 | B162: =fce -> 0.0004023164797
A163: =A162+Funkce!$B$5 -> 44.4 | B163: =fce -> 0.009136528751
A164: =A163+Funkce!$B$5 -> 44.8 | B164: =fce -> 0.01628519503
A165: =A164+Funkce!$B$5 -> 45.2 | B165: =fce -> 0.0207590149
A166: =A165+Funkce!$B$5 -> 45.6 | B166: =fce -> 0.02190570374
A167: =A166+Funkce!$B$5 -> 46 | B167: =fce -> 0.01960409451
A168: =A167+Funkce!$B$5 -> 46.4 | B168: =fce -> 0.01427379425
A169: =A168+Funkce!$B$5 -> 46.8 | B169: =fce -> 0.006800352801
A170: =A169+Funkce!$B$5 -> 47.2 | B170: =fce -> -0.001610947798
A171: =A170+Funkce!$B$5 -> 47.6 | B171: =fce -> -0.009628686019
A172: =A171+Funkce!$B$5 -> 48 | B172: =fce -> -0.01600530544
A173: =A172+Funkce!$B$5 -> 48.4 | B173: =fce -> -0.01977052375
A174: =A173+Funkce!$B$5 -> 48.8 | B174: =fce -> -0.02037827086
A175: =A174+Funkce!$B$5 -> 49.2 | B175: =fce -> -0.01778501177
A176: =A175+Funkce!$B$5 -> 49.6 | B176: =fce -> -0.01244836118
A177: =A176+Funkce!$B$5 -> 50 | B177: =fce -> -0.005247497074
A178: =A177+Funkce!$B$5 -> 50.4 | B178: =fce -> 0.002660956898
A179: =A178+Funkce!$B$5 -> 50.8 | B179: =fce -> 0.01002806963
A180: =A179+Funkce!$B$5 -> 51.2 | B180: =fce -> 0.01570922837
A181: =A180+Funkce!$B$5 -> 51.6 | B181: =fce -> 0.01884139128
A182: =A181+Funkce!$B$5 -> 52 | B182: =fce -> 0.01897360754
A183: =A182+Funkce!$B$5 -> 52.4 | B183: =fce -> 0.01613115632
A184: =A183+Funkce!$B$5 -> 52.8 | B184: =fce -> 0.01080431124
A185: =A184+Funkce!$B$5 -> 53.2 | B185: =fce -> 0.003864631211
A186: =A185+Funkce!$B$5 -> 53.6 | B186: =fce -> -0.003577058515
A187: =A186+Funkce!$B$5 -> 54 | B187: =fce -> -0.01034794535
A188: =A187+Funkce!$B$5 -> 54.4 | B188: =fce -> -0.01539755987
A189: =A188+Funkce!$B$5 -> 54.8 | B189: =fce -> -0.01796026532
A190: =A189+Funkce!$B$5 -> 55.2 | B190: =fce -> -0.01767084644
A191: =A190+Funkce!$B$5 -> 55.6 | B191: =fce -> -0.01461582454
A192: =A191+Funkce!$B$5 -> 56 | B192: =fce -> -0.009313410752
A193: =A192+Funkce!$B$5 -> 56.4 | B193: =fce -> -0.002626253979
A194: =A193+Funkce!$B$5 -> 56.8 | B194: =fce -> 0.00437842533
A195: =A194+Funkce!$B$5 -> 57.2 | B195: =fce -> 0.01059871397
A196: =A195+Funkce!$B$5 -> 57.6 | B196: =fce -> 0.015070926
A197: =A196+Funkce!$B$5 -> 58 | B197: =fce -> 0.01711849393
A198: =A197+Funkce!$B$5 -> 58.4 | B198: =fce -> 0.01645389039
A199: =A198+Funkce!$B$5 -> 58.8 | B199: =fce -> 0.01321829305
A200: =A199+Funkce!$B$5 -> 59.2 | B200: =fce -> 0.007953642698
... 400 more rows
